{"text_format":"1","workbook":"xlsx","n_sheets":6,"sheets":["Фигуры","Связи","Вхождения","Циклы","Статистика","Справочники"],"not_rendered":{"charts":0,"images":0,"macros":0,"external_links":0,"defined_names":7,"comments":0,"pivot_tables":0},"unopened":[],"bounds":{"document_bytes":16777216,"sheet_cells":100000,"rows_first":2000,"rows_last":500,"rows_between":2000,"halvings":0,"cell_chars":16384,"cell_head_chars":4096},"cells_cut":0,"cells_raw":0,"read":"whole","date_system":"1900"}

{"sheet":"Фигуры","index":0,"n_rows":1,"n_cols":13,"rows_kept":1,"cut":false,"hidden":false,"merged":[]}
["ID","Тип","Термин / Название блока","Определение","Источник","Вложен","Дублер","PinX","PinY","Width","Height","LineColor","TextColor"]

{"sheet":"Связи","index":1,"n_rows":1,"n_cols":6,"rows_kept":1,"cut":false,"hidden":false,"merged":[]}
["ID связи","ID из","ID в","Тип","Гипотеза","Выделено"]

{"sheet":"Вхождения","index":2,"n_rows":1,"n_cols":6,"rows_kept":1,"cut":false,"hidden":false,"merged":[]}
["ID","Начало","Конец","Текст","Цвет","Стиль"]

{"sheet":"Циклы","index":3,"n_rows":0,"n_cols":0,"rows_kept":0,"cut":false,"hidden":false,"merged":[]}

{"sheet":"Статистика","index":4,"n_rows":16,"n_cols":6,"rows_kept":16,"cut":false,"hidden":false,"merged":[[1,1,1,2],[1,4,1,5]]}
[]
[null,"Характеристика фигур",null,null,"Характеристика связей"]
[null,"не определено",{"$f":"COUNTIF(Фигуры!$B:$B,t_Unknown)","v":0},null,"не определено",{"$f":"COUNTIF(Связи!D:D,0)","v":0}]
[null,"Исходные понятия",{"$f":"SUM(C5:C8)","v":0},null,"Определение",{"$f":"COUNTIF(Связи!D:D,1)","v":0}]
[null,"  неопределяемое",{"$f":"COUNTIFS(Фигуры!$B:$B,t_Basic,Фигуры!G:G,0)","v":0},null,"Логический круг",{"$f":"COUNTIF(Связи!D:D,2)","v":0}]
[null,"  требует определения",{"$f":"COUNTIFS(Фигуры!$B:$B,t_TODO,Фигуры!G:G,0)","v":0},null,"Синонимия",{"$f":"COUNTIF(Связи!D:D,3)","v":0}]
[null,"  определено позднее",{"$f":"COUNTIFS(Фигуры!$B:$B,t_Announced,Фигуры!G:G,0)","v":0},null,"Омонимия",{"$f":"COUNTIF(Связи!D:D,4)","v":0}]
[null,"  не понятно",{"$f":"COUNTIFS(Фигуры!$B:$B,t_Unclear,Фигуры!G:G,0)","v":0},null,"Состав",{"$f":"COUNTIF(Связи!D:D,5)","v":0}]
[null,"Производные понятия",{"$f":"COUNTIFS(Фигуры!$B:$B,t_Derived,Фигуры!G:G,0)","v":0},null,"Виды определения 1 понятия",{"$f":"COUNTIF(Связи!D:D,6)","v":0}]
[null,"  реконструированные определения",{"$f":"COUNTIFS(Фигуры!L:L,129,Фигуры!G:G,0)","v":0},null,"Всего связей",{"$f":"SUM(F3:F9)","v":0}]
[null,"Блок",{"$f":"COUNTIF(Фигуры!$B:$B,t_Block)","v":0},null,"Вложения",{"$f":"COUNTA(Фигуры!F:F)-1","v":0}]
[null,"ВСЕГО фигур",{"$f":"SUM(C3:C3+C4+C9+C11+C14)","v":0},null,"Гипотезы",{"$f":"COUNTIF(Связи!E:E,1)","v":0}]
[null,"Дефекты",{"$f":"COUNTIF(Фигуры!L:L,31)","v":0},null,"Выделены",{"$f":"COUNTIF(Связи!F:F,1)","v":0}]
[null,"Дублеры",{"$f":"COUNTIF(Фигуры!G:G,1)","v":0}]
[null,null,null,null,"Размечено вхождений",{"$f":"COUNTA(Вхождения!A:A)-1","v":0}]
[null,"Логических кругов",{"$f":"COUNTA(Циклы!A:A)","v":0}]

{"sheet":"Справочники","index":5,"n_rows":10,"n_cols":6,"rows_kept":10,"cut":false,"hidden":false,"merged":[[1,1,1,2],[1,4,1,5]]}
[]
[null,"Фигуры",null,null,"Связи"]
[null,"Тип","Название",null,"Тип","Название"]
[null,0,"не определено",null,0,"не определено"]
[null,1,"Неопределяемое",null,1,"Определение"]
[null,2,"Требует определения",null,2,"Логический круг"]
[null,3,"Определено позднее",null,3,"Синонимия"]
[null,4,"Исходное не понятно",null,4,"Омонимия"]
[null,5,"Производное понятие",null,5,"Состав"]
[null,6,"Блок",null,6,"Виды определения одного понятия"]